[Event "Early-Titled-Tuesday-Blitz-April-02-2024"]
[Site "Chess.com"]
[Date "2024.04.02"]
[Round "6"]
[White "noblerone"]
[Black "AniJak"]
[Result "1-0"]
[WhiteElo "2554"]
[BlackElo "2379"]
[TimeControl "180+1"]
[EndTime "9:07:12 PDT"]
[Termination "noblerone won on time"]

1. d4 {[%clk 0:02:51.4]} 1... f5 {[%clk 0:02:59]} 2. Nf3 {[%clk 0:02:49.3]} 2...
Nf6 {[%clk 0:02:56.8]} 3. Bf4 {[%clk 0:02:49.1]} 3... g6 {[%clk 0:02:55.2]} 4.
e3 {[%clk 0:02:49]} 4... Bg7 {[%clk 0:02:54.8]} 5. Be2 {[%clk 0:02:49]} 5... d6
{[%clk 0:02:54.9]} 6. O-O {[%clk 0:02:48.8]} 6... O-O {[%clk 0:02:53.9]} 7. h3
{[%clk 0:02:48.9]} 7... Nc6 {[%clk 0:02:53.9]} 8. Bh2 {[%clk 0:02:49.3]} 8...
Qe8 {[%clk 0:02:54.2]} 9. c4 {[%clk 0:02:49.1]} 9... e5 {[%clk 0:02:54.3]} 10.
Nc3 {[%clk 0:02:48]} 10... e4 {[%clk 0:02:51.7]} 11. Nd2 {[%clk 0:02:46.5]}
11... Bd7 {[%clk 0:02:49.5]} 12. c5 {[%clk 0:02:23.3]} 12... dxc5 {[%clk
0:02:46.8]} 13. dxc5 {[%clk 0:02:21.8]} 13... Ne5 {[%clk 0:02:46]} 14. Nc4
{[%clk 0:02:18.8]} 14... Nd3 {[%clk 0:01:59.6]} 15. Bxd3 {[%clk 0:02:06.2]}
15... exd3 {[%clk 0:02:00.5]} 16. Qxd3 {[%clk 0:02:06.7]} 16... Ne4 {[%clk
0:01:30]} 17. Nxe4 {[%clk 0:01:54.1]} 17... fxe4 {[%clk 0:01:28.4]} 18. Qd5+
{[%clk 0:01:49.7]} 18... Qf7 {[%clk 0:01:20.2]} 19. Qxf7+ {[%clk 0:01:33.2]}
19... Rxf7 {[%clk 0:01:20.3]} 20. Ne5 {[%clk 0:01:03.3]} 20... Bxe5 {[%clk
0:01:10.4]} 21. Bxe5 {[%clk 0:01:04.2]} 21... Bb5 {[%clk 0:01:10.2]} 22. Rfd1
{[%clk 0:01:02]} 22... Raf8 {[%clk 0:01:02.7]} 23. Bg3 {[%clk 0:00:58.4]} 23...
Bd3 {[%clk 0:01:01.2]} 24. f4 {[%clk 0:00:50.2]} 24... Rd8 {[%clk 0:00:56.7]}
25. Be1 {[%clk 0:00:45.7]} 25... Rd5 {[%clk 0:00:51.5]} 26. b4 {[%clk
0:00:43.2]} 26... a6 {[%clk 0:00:48.3]} 27. Rac1 {[%clk 0:00:42.1]} 27... c6
{[%clk 0:00:47.4]} 28. Bc3 {[%clk 0:00:41.2]} 28... Rfd7 {[%clk 0:00:46.8]} 29.
Be5 {[%clk 0:00:40.7]} 29... Kf7 {[%clk 0:00:46.2]} 30. Kf2 {[%clk 0:00:38]}
30... h5 {[%clk 0:00:45.5]} 31. g4 {[%clk 0:00:37.6]} 31... hxg4 {[%clk
0:00:38.8]} 32. hxg4 {[%clk 0:00:38.5]} 32... Bb5 {[%clk 0:00:35.1]} 33. Bd4
{[%clk 0:00:33.4]} 33... Ke6 {[%clk 0:00:23.8]} 34. Rh1 {[%clk 0:00:33.2]} 34...
Rd8 {[%clk 0:00:16.9]} 35. Rh6 {[%clk 0:00:31.7]} 35... Kf7 {[%clk 0:00:12.4]}
36. Rh7+ {[%clk 0:00:30.3]} 36... Ke6 {[%clk 0:00:12.7]} 37. Rg7 {[%clk
0:00:30.2]} 37... Rf8 {[%clk 0:00:11.3]} 38. Rxg6+ {[%clk 0:00:28.2]} 38... Ke7
{[%clk 0:00:11.7]} 39. Kg3 {[%clk 0:00:26.9]} 39... Rf7 {[%clk 0:00:09.6]} 40.
Rh1 {[%clk 0:00:26.2]} 40... Rd8 {[%clk 0:00:08]} 41. Rhh6 {[%clk 0:00:25.4]}
41... Rdf8 {[%clk 0:00:07.1]} 42. Re6+ {[%clk 0:00:25.4]} 42... Kd7 {[%clk
0:00:07.6]} 43. g5 {[%clk 0:00:22.8]} 43... Bc4 {[%clk 0:00:05.6]} 44. Rd6+
{[%clk 0:00:23.1]} 44... Kc8 {[%clk 0:00:06]} 45. a3 {[%clk 0:00:23.6]} 45...
Rg8 {[%clk 0:00:04.5]} 46. Rdf6 {[%clk 0:00:22.6]} 46... Rd7 {[%clk 0:00:04.1]}
47. Kg4 {[%clk 0:00:20.7]} 47... Rd5 {[%clk 0:00:04.1]} 48. f5 {[%clk
0:00:20.8]} 48... Be2+ {[%clk 0:00:04.2]} 49. Kf4 {[%clk 0:00:21.1]} 49... Bf3
{[%clk 0:00:04.2]} 50. g6 {[%clk 0:00:20.5]} 50... Rd7 {[%clk 0:00:03.9]} 51.
Rf7 {[%clk 0:00:20.3]} 51... Rxf7 {[%clk 0:00:02.2]} 52. gxf7 {[%clk 0:00:21.2]}
52... Rf8 {[%clk 0:00:02.5]} 53. Rh7 {[%clk 0:00:21.2]} 53... Kd7 {[%clk
0:00:01.2]} 54. Kg5 {[%clk 0:00:20.1]} 1-0

[Event "Early-Titled-Tuesday-Blitz-April-02-2024"]
[Site "Chess.com"]
[Date "2024.04.02"]
[Round "6"]
[White "Tugrik1969"]
[Black "falzehope0"]
[Result "1-0"]
[WhiteElo "2552"]
[BlackElo "2378"]
[TimeControl "180+1"]
[EndTime "9:07:12 PDT"]
[Termination "Tugrik1969 won on time"]

1. d4 {[%clk 0:02:56.8]} 1... e6 {[%clk 0:02:59.5]} 2. c4 {[%clk 0:02:56.7]}
2... d5 {[%clk 0:02:59.3]} 3. Nf3 {[%clk 0:02:56.8]} 3... c6 {[%clk 0:02:58.2]}
4. g3 {[%clk 0:02:56.5]} 4... Bd6 {[%clk 0:02:57.3]} 5. Bg2 {[%clk 0:02:56.2]}
5... f5 {[%clk 0:02:57.5]} 6. O-O {[%clk 0:02:55.8]} 6... Nf6 {[%clk 0:02:57.4]}
7. Nc3 {[%clk 0:02:55.8]} 7... O-O {[%clk 0:02:56.7]} 8. Qc2 {[%clk 0:02:56.2]}
8... Nbd7 {[%clk 0:02:54.4]} 9. cxd5 {[%clk 0:02:55.2]} 9... exd5 {[%clk
0:02:53.9]} 10. Qxf5 {[%clk 0:02:38.2]} 10... Ne5 {[%clk 0:02:42.6]} 11. Qc2
{[%clk 0:02:36.3]} 11... Nxf3+ {[%clk 0:02:28.4]} 12. exf3 {[%clk 0:02:31.1]}
12... Qe8 {[%clk 0:02:27.4]} 13. Be3 {[%clk 0:02:13.2]} 13... Qh5 {[%clk
0:02:26.4]} 14. Rfe1 {[%clk 0:02:13.4]} 14... Bd7 {[%clk 0:02:24.2]} 15. Ne2
{[%clk 0:02:10.7]} 15... g5 {[%clk 0:02:23.2]} 16. Qd2 {[%clk 0:01:48.9]} 16...
h6 {[%clk 0:02:17.4]} 17. h4 {[%clk 0:01:36.9]} 17... gxh4 {[%clk 0:02:06.6]}
18. Bxh6 {[%clk 0:01:33.8]} 18... Rf7 {[%clk 0:02:02.2]} 19. Bf4 {[%clk
0:01:30.2]} 19... hxg3 {[%clk 0:01:56.9]} 20. Nxg3 {[%clk 0:01:17.8]} 20... Bxf4
{[%clk 0:01:47.3]} 21. Qxf4 {[%clk 0:01:18.4]} 21... Qh7 {[%clk 0:01:39.7]} 22.
Re5 {[%clk 0:01:16.6]} 22... Raf8 {[%clk 0:01:30.5]} 23. Rg5+ {[%clk 0:01:09.5]}
23... Kh8 {[%clk 0:01:28.9]} 24. Re1 {[%clk 0:01:08.2]} 24... Bh3 {[%clk
0:01:06.5]} 25. Bxh3 {[%clk 0:00:56.4]} 25... Qxh3 {[%clk 0:01:05.1]} 26. Ree5
{[%clk 0:00:36]} 26... Nh7 {[%clk 0:00:44.5]} 27. Rgf5 {[%clk 0:00:31.1]} 27...
Rxf5 {[%clk 0:00:23.3]} 28. Rxf5 {[%clk 0:00:32]} 28... Rxf5 {[%clk 0:00:21.9]}
29. Nxf5 {[%clk 0:00:28.6]} 29... Nf6 {[%clk 0:00:14.9]} 30. Qg5 {[%clk
0:00:26.3]} 30... Ne8 {[%clk 0:00:08.9]} 31. Nh6 {[%clk 0:00:20.3]} 31... Ng7
{[%clk 0:00:06.4]} 32. Nf7+ {[%clk 0:00:16.6]} 32... Kh7 {[%clk 0:00:05.6]} 33.
Ne5 {[%clk 0:00:16.7]} 33... Qh6 {[%clk 0:00:04.8]} 34. f4 {[%clk 0:00:14.1]}
34... Qxg5+ {[%clk 0:00:04.8]} 35. fxg5 {[%clk 0:00:13.9]} 35... Nf5 {[%clk
0:00:05.7]} 36. f4 {[%clk 0:00:12.5]} 36... Nxd4 {[%clk 0:00:06.1]} 37. Kf2
{[%clk 0:00:13.1]} 37... Nc2 {[%clk 0:00:05.8]} 38. f5 {[%clk 0:00:12.1]} 38...
Nd4 {[%clk 0:00:05.9]} 39. f6 {[%clk 0:00:11.4]} 39... Ne6 {[%clk 0:00:04.8]}
40. g6+ {[%clk 0:00:11.4]} 40... Kh6 {[%clk 0:00:04.9]} 41. Kf3 {[%clk
0:00:08.1]} 41... Ng5+ {[%clk 0:00:04.2]} 42. Kg4 {[%clk 0:00:07.8]} 42... Ne4
{[%clk 0:00:04.6]} 43. Kf5 {[%clk 0:00:07.6]} 43... Ng3+ {[%clk 0:00:03.2]} 44.
Ke6 {[%clk 0:00:07]} 44... Ne4 {[%clk 0:00:02.7]} 45. f7 {[%clk 0:00:05.2]}
45... Kg7 {[%clk 0:00:02.5]} 46. Ke7 {[%clk 0:00:05.8]} 1-0

[Event "Early-Titled-Tuesday-Blitz-April-02-2024"]
[Site "Chess.com"]
[Date "2024.04.02"]
[Round "6"]
[White "Mariia89"]
[Black "ExchangeAB"]
[Result "0-1"]
[WhiteElo "2273"]
[BlackElo "2468"]
[TimeControl "180+1"]
[EndTime "9:07:13 PDT"]
[Termination "ExchangeAB won on time"]

1. d4 {[%clk 0:02:59.9]} 1... d5 {[%clk 0:02:58.3]} 2. c4 {[%clk 0:02:59.4]}
2... c6 {[%clk 0:02:59]} 3. e3 {[%clk 0:02:59.2]} 3... Nf6 {[%clk 0:02:56.4]} 4.
Nc3 {[%clk 0:02:58.7]} 4... g6 {[%clk 0:02:53.2]} 5. Nf3 {[%clk 0:02:56.7]} 5...
Bg7 {[%clk 0:02:53.2]} 6. Be2 {[%clk 0:02:55.9]} 6... O-O {[%clk 0:02:53.1]} 7.
O-O {[%clk 0:02:56.1]} 7... Bg4 {[%clk 0:02:50.9]} 8. Ne5 {[%clk 0:02:54.6]}
8... Bxe2 {[%clk 0:02:50.5]} 9. Qxe2 {[%clk 0:02:55.5]} 9... e6 {[%clk
0:02:50.6]} 10. Bd2 {[%clk 0:02:41.9]} 10... Nfd7 {[%clk 0:02:49.4]} 11. Nxd7
{[%clk 0:02:38.8]} 11... Nxd7 {[%clk 0:02:48.6]} 12. Rab1 {[%clk 0:02:35.9]}
12... Qe7 {[%clk 0:02:20.9]} 13. b4 {[%clk 0:02:34.5]} 13... dxc4 {[%clk
0:02:16.2]} 14. Qxc4 {[%clk 0:02:32.9]} 14... e5 {[%clk 0:02:16.6]} 15. b5
{[%clk 0:02:13.6]} 15... exd4 {[%clk 0:02:10.3]} 16. exd4 {[%clk 0:02:13.2]}
16... Nb6 {[%clk 0:02:07.8]} 17. Qc5 {[%clk 0:02:00.6]} 17... Qxc5 {[%clk
0:01:56.4]} 18. dxc5 {[%clk 0:02:00.6]} 18... Nc4 {[%clk 0:01:56.9]} 19. Ne4
{[%clk 0:01:48.8]} 19... f5 {[%clk 0:01:52.9]} 20. Rbc1 {[%clk 0:01:36.4]} 20...
cxb5 {[%clk 0:01:51.2]} 21. Nd6 {[%clk 0:01:28.8]} 21... Nxd2 {[%clk 0:01:48.7]}
22. Rfd1 {[%clk 0:01:28.5]} 22... Ne4 {[%clk 0:01:45.3]} 23. Nxb7 {[%clk
0:01:28]} 23... Rab8 {[%clk 0:01:26.2]} 24. Rd7 {[%clk 0:01:15.9]} 24... Nf6
{[%clk 0:01:16.9]} 25. Re7 {[%clk 0:01:07.9]} 25... Nd5 {[%clk 0:01:12.2]} 26.
Rd7 {[%clk 0:01:07.7]} 26... Rf7 {[%clk 0:01:09.9]} 27. c6 {[%clk 0:00:57.2]}
27... Nb6 {[%clk 0:00:50.8]} 28. Rxf7 {[%clk 0:00:33.3]} 28... Kxf7 {[%clk
0:00:50.7]} 29. Nd6+ {[%clk 0:00:32.4]} 29... Ke6 {[%clk 0:00:48]} 30. Nxb5
{[%clk 0:00:28.8]} 30... Be5 {[%clk 0:00:40.5]} 31. Nxa7 {[%clk 0:00:27.4]}
31... Ra8 {[%clk 0:00:35.5]} 32. Nb5 {[%clk 0:00:15.1]} 32... Rxa2 {[%clk
0:00:35.5]} 33. f3 {[%clk 0:00:08.5]} 33... Ra1 {[%clk 0:00:35.5]} 34. Rxa1
{[%clk 0:00:06.2]} 34... Bxa1 {[%clk 0:00:36.4]} 35. Kf2 {[%clk 0:00:04.8]}
35... f4 {[%clk 0:00:36.1]} 36. g3 {[%clk 0:00:04.6]} 36... Be5 {[%clk
0:00:35.2]} 37. h4 {[%clk 0:00:03.5]} 37... Kd5 {[%clk 0:00:32.4]} 38. gxf4
{[%clk 0:00:03.5]} 38... Bxf4 {[%clk 0:00:32]} 39. c7 {[%clk 0:00:02.7]} 39...
Nc8 {[%clk 0:00:24.8]} 40. Nc3+ {[%clk 0:00:01.8]} 40... Kc6 {[%clk 0:00:24.2]}
41. Ne2 {[%clk 0:00:02.7]} 41... Bxc7 {[%clk 0:00:23.9]} 42. f4 {[%clk
0:00:02.3]} 42... Kd5 {[%clk 0:00:24]} 43. Kf3 {[%clk 0:00:03.2]} 43... Ke6
{[%clk 0:00:23.8]} 44. Kg4 {[%clk 0:00:03.4]} 44... Ne7 {[%clk 0:00:24.1]} 45.
Nd4+ {[%clk 0:00:03.7]} 45... Kf6 {[%clk 0:00:23.5]} 46. h5 {[%clk 0:00:03.2]}
46... Nf5 {[%clk 0:00:18.6]} 47. Nf3 {[%clk 0:00:02.9]} 47... gxh5+ {[%clk
0:00:15.2]} 48. Kxh5 {[%clk 0:00:02.9]} 48... Bxf4 {[%clk 0:00:15.9]} 0-1

[Event "Early-Titled-Tuesday-Blitz-April-02-2024"]
[Site "Chess.com"]
[Date "2024.04.02"]
[Round "6"]
[White "RealPerangel"]
[Black "arnash_bauyrzhan"]
[Result "1-0"]
[WhiteElo "2527"]
[BlackElo "2351"]
[TimeControl "180+1"]
[EndTime "9:07:18 PDT"]
[Termination "RealPerangel won on time"]

1. e4 {[%clk 0:03:00.9]} 1... c5 {[%clk 0:03:00]} 2. g3 {[%clk 0:03:01]} 2... g6
{[%clk 0:02:58.4]} 3. Bg2 {[%clk 0:03:01]} 3... Bg7 {[%clk 0:02:59]} 4. Ne2
{[%clk 0:03:01.6]} 4... d6 {[%clk 0:02:59.3]} 5. c3 {[%clk 0:03:02.2]} 5... Nc6
{[%clk 0:02:59.2]} 6. d4 {[%clk 0:03:02.8]} 6... cxd4 {[%clk 0:02:55.7]} 7. cxd4
{[%clk 0:03:03.7]} 7... e6 {[%clk 0:02:51.4]} 8. Nbc3 {[%clk 0:03:02.9]} 8...
Nge7 {[%clk 0:02:49.4]} 9. Bg5 {[%clk 0:03:03.4]} 9... O-O {[%clk 0:02:47.4]}
10. Qd2 {[%clk 0:03:02.7]} 10... f5 {[%clk 0:02:42.7]} 11. exf5 {[%clk
0:02:58.8]} 11... Rxf5 {[%clk 0:02:42.6]} 12. O-O {[%clk 0:02:58.1]} 12... Bd7
{[%clk 0:02:27.8]} 13. d5 {[%clk 0:02:44.9]} 13... Ne5 {[%clk 0:02:17.4]} 14.
dxe6 {[%clk 0:02:37.1]} 14... Bxe6 {[%clk 0:02:17]} 15. Nd5 {[%clk 0:02:16.6]}
15... Rxg5 {[%clk 0:02:01]} 16. Qxg5 {[%clk 0:02:14.9]} 16... Nxd5 {[%clk
0:01:59.7]} 17. Qd2 {[%clk 0:02:11.7]} 17... Nc4 {[%clk 0:01:41.9]} 18. Qc2
{[%clk 0:02:10.6]} 18... Nb4 {[%clk 0:01:39.2]} 19. Qb3 {[%clk 0:02:02.6]} 19...
Qb6 {[%clk 0:01:27.7]} 20. Rad1 {[%clk 0:01:57.1]} 20... Re8 {[%clk 0:01:23.6]}
21. Nf4 {[%clk 0:01:52.7]} 21... Bf7 {[%clk 0:01:22.1]} 22. Nd5 {[%clk
0:01:42.6]} 22... Nxd5 {[%clk 0:01:18.6]} 23. Bxd5 {[%clk 0:01:43.2]} 23... Bxd5
{[%clk 0:01:07.8]} 24. Rxd5 {[%clk 0:01:42.4]} 24... Qxb3 {[%clk 0:01:01]} 25.
axb3 {[%clk 0:01:42]} 25... Nb6 {[%clk 0:00:56.9]} 26. Rxd6 {[%clk 0:01:42.2]}
26... Bxb2 {[%clk 0:00:56.7]} 27. Rfd1 {[%clk 0:01:41.6]} 27... Re2 {[%clk
0:00:46.7]} 28. Rd8+ {[%clk 0:01:36.2]} 28... Kf7 {[%clk 0:00:45.5]} 29. Rb8
{[%clk 0:01:35]} 29... Re7 {[%clk 0:00:43.6]} 30. Kg2 {[%clk 0:01:32.3]} 30...
Be5 {[%clk 0:00:41.8]} 31. Rbd8 {[%clk 0:01:27.9]} 31... Rc7 {[%clk 0:00:36.8]}
32. Re1 {[%clk 0:01:21.4]} 32... Bf6 {[%clk 0:00:36.6]} 33. Rb8 {[%clk
0:01:20.5]} 33... Nd7 {[%clk 0:00:29]} 34. Ra8 {[%clk 0:01:20.6]} 34... Nc5
{[%clk 0:00:17.8]} 35. b4 {[%clk 0:01:15.5]} 35... Nd3 {[%clk 0:00:16.6]} 36.
Re3 {[%clk 0:01:13.1]} 36... Nxb4 {[%clk 0:00:16.3]} 37. Rxa7 {[%clk 0:01:13.3]}
37... Nd5 {[%clk 0:00:15.1]} 38. Rb3 {[%clk 0:01:12.5]} 38... Bd4 {[%clk
0:00:12.4]} 39. Raxb7 {[%clk 0:01:11.6]} 39... Rxb7 {[%clk 0:00:12.7]} 40. Rxb7+
{[%clk 0:01:12.3]} 40... Kf6 {[%clk 0:00:10.5]} 41. Rd7 {[%clk 0:01:07.1]} 41...
Ke6 {[%clk 0:00:09.3]} 42. Rxh7 {[%clk 0:01:06.9]} 42... Ne7 {[%clk 0:00:08.3]}
43. Rh4 {[%clk 0:01:06.1]} 43... Bf6 {[%clk 0:00:07.5]} 44. Re4+ {[%clk
0:01:06.1]} 44... Kf5 {[%clk 0:00:07.2]} 45. Re2 {[%clk 0:01:06.6]} 45... Nd5
{[%clk 0:00:07.1]} 46. Rc2 {[%clk 0:01:02.4]} 46... Nb4 {[%clk 0:00:06.7]} 47.
Rc5+ {[%clk 0:01:01.1]} 47... Ke6 {[%clk 0:00:06.3]} 48. h4 {[%clk 0:01:00.4]}
48... Nd3 {[%clk 0:00:06.1]} 49. Ra5 {[%clk 0:00:57.7]} 49... Bd4 {[%clk
0:00:04.6]} 50. Ra6+ {[%clk 0:00:57.7]} 50... Kf5 {[%clk 0:00:04.5]} 51. Rd6
{[%clk 0:00:51.5]} 51... Ke5 {[%clk 0:00:04.8]} 52. Rxg6 {[%clk 0:00:49.3]}
52... Nxf2 {[%clk 0:00:05]} 53. Kf3 {[%clk 0:00:47]} 53... Nd3 {[%clk
0:00:04.2]} 54. Rg5+ {[%clk 0:00:45.7]} 54... Ke6 {[%clk 0:00:02.6]} 55. Ke4
{[%clk 0:00:45.7]} 55... Bf6 {[%clk 0:00:01.2]} 56. Ra5 {[%clk 0:00:41]} 56...
Ne5 {[%clk 0:00:01.2]} 57. h5 {[%clk 0:00:39.8]} 57... Ng4 {[%clk 0:00:01.3]}
58. Kf4 {[%clk 0:00:38.8]} 58... Nh6 {[%clk 0:00:01.2]} 59. g4 {[%clk
0:00:38.5]} 1-0

[Event "Early-Titled-Tuesday-Blitz-April-02-2024"]
[Site "Chess.com"]
[Date "2024.04.02"]
[Round "6"]
[White "wonderfultime"]
[Black "chessdjw"]
[Result "1-0"]
[WhiteElo "2979"]
[BlackElo "2795"]
[TimeControl "180+1"]
[EndTime "9:07:20 PDT"]
[Termination "wonderfultime won by resignation"]

1. d4 {[%clk 0:02:49.8]} 1... Nf6 {[%clk 0:03:00]} 2. Nf3 {[%clk 0:02:49.8]}
2... g6 {[%clk 0:02:56.6]} 3. c4 {[%clk 0:02:49.9]} 3... Bg7 {[%clk 0:02:57.1]}
4. g3 {[%clk 0:02:50.2]} 4... c6 {[%clk 0:02:56.8]} 5. Bg2 {[%clk 0:02:50.1]}
5... O-O {[%clk 0:02:56.9]} 6. O-O {[%clk 0:02:50.2]} 6... d5 {[%clk 0:02:57.6]}
7. b3 {[%clk 0:02:50.8]} 7... Bf5 {[%clk 0:02:46.8]} 8. Bb2 {[%clk 0:02:50.6]}
8... Nbd7 {[%clk 0:02:45.9]} 9. Nc3 {[%clk 0:02:49.6]} 9... dxc4 {[%clk
0:02:42.3]} 10. bxc4 {[%clk 0:02:49.5]} 10... Ne4 {[%clk 0:02:38.7]} 11. Qb3
{[%clk 0:02:37.4]} 11... Qb6 {[%clk 0:02:29]} 12. Rac1 {[%clk 0:02:36.1]} 12...
Nxc3 {[%clk 0:02:15]} 13. Bxc3 {[%clk 0:02:35.1]} 13... Be4 {[%clk 0:02:14.6]}
14. Rfd1 {[%clk 0:02:29.5]} 14... Rfd8 {[%clk 0:02:06.9]} 15. Qa3 {[%clk
0:01:51.6]} 15... Bf8 {[%clk 0:02:01.9]} 16. Qa4 {[%clk 0:01:31.6]} 16... a5
{[%clk 0:01:49.8]} 17. e3 {[%clk 0:01:22.2]} 17... Qa6 {[%clk 0:01:46.7]} 18.
Nd2 {[%clk 0:01:06.5]} 18... Bxg2 {[%clk 0:01:45.2]} 19. Kxg2 {[%clk 0:01:06.7]}
19... b5 {[%clk 0:01:45.1]} 20. Qc2 {[%clk 0:01:07.4]} 20... b4 {[%clk
0:01:28.4]} 21. Ba1 {[%clk 0:01:07.5]} 21... a4 {[%clk 0:01:28.7]} 22. c5 {[%clk
0:01:04.1]} 22... Rdb8 {[%clk 0:01:21.5]} 23. Rb1 {[%clk 0:01:00.4]} 23... Nf6
{[%clk 0:01:02]} 24. Nc4 {[%clk 0:00:49.8]} 24... b3 {[%clk 0:00:57.3]} 25. axb3
{[%clk 0:00:47.3]} 25... axb3 {[%clk 0:00:58.2]} 26. Rxb3 {[%clk 0:00:44.2]}
26... Qa4 {[%clk 0:00:55.7]} 27. Nb6 {[%clk 0:00:42.4]} 27... Qa2 {[%clk
0:00:28.3]} 28. Rb2 {[%clk 0:00:40.9]} 28... Qe6 {[%clk 0:00:28.9]} 29. Nxa8
{[%clk 0:00:40.3]} 29... Rxa8 {[%clk 0:00:29.8]} 30. Qe2 {[%clk 0:00:31.4]}
30... h5 {[%clk 0:00:28]} 31. h3 {[%clk 0:00:29]} 31... g5 {[%clk 0:00:25]} 32.
e4 {[%clk 0:00:20.4]} 32... Nxe4 {[%clk 0:00:18.1]} 33. Re1 {[%clk 0:00:13.8]}
33... Qd5 {[%clk 0:00:03.4]} 34. Qxe4 {[%clk 0:00:13.8]} 34... Qxe4+ {[%clk
0:00:04.1]} 35. Rxe4 {[%clk 0:00:14.7]} 35... Rxa1 {[%clk 0:00:04.3]} 36. Rb6
{[%clk 0:00:15.4]} 36... f5 {[%clk 0:00:03.1]} 37. Re5 {[%clk 0:00:14.9]} 37...
Rd1 {[%clk 0:00:03.1]} 38. Rxf5 {[%clk 0:00:14.6]} 38... Rxd4 {[%clk 0:00:04]}
39. Rxg5+ {[%clk 0:00:15]} 39... Kf7 {[%clk 0:00:04.7]} 40. Rxc6 {[%clk
0:00:15.5]} 40... Bg7 {[%clk 0:00:05.6]} 41. Rxh5 {[%clk 0:00:15.2]} 41... Bf6
{[%clk 0:00:06.1]} 42. Rc8 {[%clk 0:00:15.2]} 42... Rd2 {[%clk 0:00:06.7]} 43.
Rf5 {[%clk 0:00:15.1]} 43... Ke6 {[%clk 0:00:07.1]} 44. Rf3 {[%clk 0:00:15.6]}
44... Bd4 {[%clk 0:00:07.4]} 45. Rd8 {[%clk 0:00:15.8]} 45... Ke5 {[%clk
0:00:05.9]} 46. h4 {[%clk 0:00:14.5]} 46... Rc2 {[%clk 0:00:05.2]} 47. h5 {[%clk
0:00:14.9]} 47... Bxc5 {[%clk 0:00:04.4]} 48. h6 {[%clk 0:00:12.3]} 48... Ke4
{[%clk 0:00:04.8]} 49. h7 {[%clk 0:00:12.4]} 49... Bxf2 {[%clk 0:00:03.3]} 50.
Rxf2 {[%clk 0:00:12.3]} 50... Rxf2+ {[%clk 0:00:02.2]} 51. Kxf2 {[%clk
0:00:13.2]} 51... e5 {[%clk 0:00:02.1]} 52. h8=Q {[%clk 0:00:13.3]} 52... Kf5
{[%clk 0:00:02.3]} 53. Qh7+ {[%clk 0:00:13.6]} 1-0

[Event "Early-Titled-Tuesday-Blitz-April-02-2024"]
[Site "Chess.com"]
[Date "2024.04.02"]
[Round "6"]
[White "RedFirePanda"]
[Black "LuisFSiles"]
[Result "1-0"]
[WhiteElo "2531"]
[BlackElo "2356"]
[TimeControl "180+1"]
[EndTime "9:07:21 PDT"]
[Termination "RedFirePanda won by resignation"]

1. d4 {[%clk 0:03:00.9]} 1... Nf6 {[%clk 0:02:59.5]} 2. Bf4 {[%clk 0:02:59.6]}
2... d6 {[%clk 0:02:54.8]} 3. e3 {[%clk 0:02:53.9]} 3... Nbd7 {[%clk 0:02:53.7]}
4. Nf3 {[%clk 0:02:50.5]} 4... Nh5 {[%clk 0:02:51.9]} 5. Bg3 {[%clk 0:02:47]}
5... Nxg3 {[%clk 0:02:49.6]} 6. hxg3 {[%clk 0:02:47.9]} 6... e5 {[%clk
0:02:44.2]} 7. dxe5 {[%clk 0:02:44.3]} 7... Nxe5 {[%clk 0:02:36.4]} 8. Nxe5
{[%clk 0:02:37.6]} 8... dxe5 {[%clk 0:02:36.4]} 9. Qxd8+ {[%clk 0:02:38.5]} 9...
Kxd8 {[%clk 0:02:36.9]} 10. c3 {[%clk 0:02:33]} 10... Bf5 {[%clk 0:02:32.7]} 11.
Nd2 {[%clk 0:02:31.3]} 11... c6 {[%clk 0:02:31]} 12. Bc4 {[%clk 0:02:00.1]}
12... f6 {[%clk 0:02:29.9]} 13. O-O-O {[%clk 0:01:57.9]} 13... Kc7 {[%clk
0:02:25]} 14. Bb3 {[%clk 0:01:56.8]} 14... Bc5 {[%clk 0:02:17]} 15. Bc2 {[%clk
0:01:55.5]} 15... Bg6 {[%clk 0:02:03.9]} 16. Bxg6 {[%clk 0:01:45.7]} 16... hxg6
{[%clk 0:02:04.8]} 17. Ne4 {[%clk 0:01:45.9]} 17... Be7 {[%clk 0:02:03]} 18. Kc2
{[%clk 0:01:37.2]} 18... f5 {[%clk 0:02:00.2]} 19. Nd2 {[%clk 0:01:34.4]} 19...
b6 {[%clk 0:01:51.1]} 20. Nc4 {[%clk 0:01:30.7]} 20... Bf6 {[%clk 0:01:42.2]}
21. Rh3 {[%clk 0:00:54.7]} 21... Rxh3 {[%clk 0:01:29.8]} 22. gxh3 {[%clk
0:00:55.6]} 22... g5 {[%clk 0:01:25.6]} 23. e4 {[%clk 0:00:37.4]} 23... g6
{[%clk 0:01:20.8]} 24. exf5 {[%clk 0:00:35.3]} 24... gxf5 {[%clk 0:01:20.4]} 25.
Nd6 {[%clk 0:00:33.9]} 25... Rh8 {[%clk 0:01:05]} 26. Nxf5 {[%clk 0:00:29.3]}
26... Rxh3 {[%clk 0:01:04.9]} 27. Nd6 {[%clk 0:00:27]} 27... Be7 {[%clk
0:01:00.7]} 28. Ne4 {[%clk 0:00:25.4]} 28... Rh2 {[%clk 0:00:59.4]} 29. Rd2
{[%clk 0:00:23.6]} 29... g4 {[%clk 0:00:52.7]} 30. Re2 {[%clk 0:00:22.8]} 30...
Kd7 {[%clk 0:00:49.1]} 31. Nd2 {[%clk 0:00:22.9]} 31... Ke6 {[%clk 0:00:47.2]}
32. Nc4 {[%clk 0:00:19.6]} 32... Bf6 {[%clk 0:00:47.1]} 33. Ne3 {[%clk
0:00:18.6]} 33... Rh8 {[%clk 0:00:27.9]} 34. Nxg4 {[%clk 0:00:18.5]} 34... Rf8
{[%clk 0:00:27]} 35. f4 {[%clk 0:00:14]} 35... Bh8 {[%clk 0:00:17.9]} 36. Nxe5
{[%clk 0:00:11.1]} 36... Kf5 {[%clk 0:00:13.3]} 37. Nxc6 {[%clk 0:00:08.3]}
37... Kg4 {[%clk 0:00:12.4]} 38. Re3 {[%clk 0:00:06.7]} 38... a6 {[%clk
0:00:11.2]} 39. Nd4 {[%clk 0:00:06.3]} 39... Bxd4 {[%clk 0:00:09.4]} 40. cxd4
{[%clk 0:00:07.2]} 40... Rc8+ {[%clk 0:00:06.8]} 41. Kd2 {[%clk 0:00:07.2]}
41... Kf5 {[%clk 0:00:07.2]} 42. Re5+ {[%clk 0:00:06.5]} 42... Kg4 {[%clk
0:00:07]} 43. Re3 {[%clk 0:00:05.6]} 43... Rc4 {[%clk 0:00:05.6]} 44. Kd3 {[%clk
0:00:05.5]} 44... b5 {[%clk 0:00:06.1]} 45. b3 {[%clk 0:00:03.5]} 45... Rc1
{[%clk 0:00:05.4]} 46. Ke4 {[%clk 0:00:01.8]} 46... b4 {[%clk 0:00:04.6]} 47. d5
{[%clk 0:00:01.8]} 47... Rc2 {[%clk 0:00:05]} 48. d6 {[%clk 0:00:01.6]} 48...
Rc8 {[%clk 0:00:04.1]} 49. Kd5 {[%clk 0:00:01.5]} 49... Kf5 {[%clk 0:00:03.3]}
50. d7 {[%clk 0:00:01.6]} 50... Rd8 {[%clk 0:00:03.1]} 51. Kd6 {[%clk
0:00:02.4]} 51... Kf6 {[%clk 0:00:03.2]} 52. Re8 {[%clk 0:00:02.7]} 1-0